[Event "*** Titled Tuesday Blitz"]
[Site "Chess.com"]
[Date "2020.03.03"]
[Round "3"]
[White "Dale"]
[Black "semchik73"]
[Result "1-0"]
[WhiteElo "1911"]
[BlackElo "2299"]
[TimeControl "180+1"]
[EndTime "13:29:31 PST"]
[Termination "Dale won by checkmate"]

1. c3 {[%clk 0:03:00.9]} 1... d5 {[%clk 0:02:59]} 2. d3 {[%clk 0:03:00.1]} 2...
c6 {[%clk 0:02:59.3]} 3. e3 {[%clk 0:02:58.6]} 3... Nf6 {[%clk 0:02:59.8]} 4.
Nf3 {[%clk 0:02:54.9]} 4... g6 {[%clk 0:02:59.4]} 5. Be2 {[%clk 0:02:52.9]} 5...
Bg7 {[%clk 0:02:59.8]} 6. Nbd2 {[%clk 0:02:45.8]} 6... O-O {[%clk 0:02:59.9]} 7.
Qb3 {[%clk 0:02:38.5]} 7... Nbd7 {[%clk 0:03:00.1]} 8. O-O {[%clk 0:02:29.6]}
8... e5 {[%clk 0:02:58.5]} 9. Rd1 {[%clk 0:02:25.9]} 9... Re8 {[%clk 0:02:57.2]}
10. Bf1 {[%clk 0:02:17.5]} 10... Nc5 {[%clk 0:02:56.2]} 11. Qc2 {[%clk
0:02:16.6]} 11... b6 {[%clk 0:02:56.6]} 12. Nxe5 {[%clk 0:02:10.1]} 12... Rxe5
{[%clk 0:02:55.5]} 13. d4 {[%clk 0:02:10.3]} 13... Re8 {[%clk 0:02:55]} 14. dxc5
{[%clk 0:02:10.2]} 14... bxc5 {[%clk 0:02:54]} 15. c4 {[%clk 0:02:01]} 15... d4
{[%clk 0:02:53.1]} 16. exd4 {[%clk 0:01:58.6]} 16... cxd4 {[%clk 0:02:52.6]} 17.
Nb3 {[%clk 0:01:54.3]} 17... Bf5 {[%clk 0:02:51.9]} 18. Bd3 {[%clk 0:01:50.1]}
18... Bxd3 {[%clk 0:02:49.5]} 19. Qxd3 {[%clk 0:01:50.2]} 19... Ne4 {[%clk
0:02:47.8]} 20. Bf4 {[%clk 0:01:40.3]} 20... c5 {[%clk 0:02:46.6]} 21. Re1
{[%clk 0:01:34.8]} 21... Nf6 {[%clk 0:02:40.6]} 22. Rxe8+ {[%clk 0:01:30.1]}
22... Qxe8 {[%clk 0:02:40.3]} 23. Nxc5 {[%clk 0:01:29.5]} 23... Rc8 {[%clk
0:02:40.2]} 24. Nb3 {[%clk 0:01:28]} 24... Qd7 {[%clk 0:02:34.8]} 25. h3 {[%clk
0:01:25.4]} 25... Nh5 {[%clk 0:02:33.9]} 26. Be3 {[%clk 0:01:17.8]} 26... f5
{[%clk 0:02:33.5]} 27. Rd1 {[%clk 0:01:10.8]} 27... f4 {[%clk 0:02:32.7]} 28.
Bxd4 {[%clk 0:01:09.8]} 28... Rd8 {[%clk 0:02:33]} 29. Rd2 {[%clk 0:00:57.3]}
29... f3 {[%clk 0:02:32.4]} 30. Qxf3 {[%clk 0:00:55.3]} 30... Bxd4 {[%clk
0:02:31.1]} 31. Rxd4 {[%clk 0:00:54.9]} 31... Qe7 {[%clk 0:02:30]} 32. Rxd8+
{[%clk 0:00:54.1]} 32... Qxd8 {[%clk 0:02:30.3]} 33. Qd5+ {[%clk 0:00:54.2]}
33... Qxd5 {[%clk 0:02:30.7]} 34. cxd5 {[%clk 0:00:54.5]} 34... Nf4 {[%clk
0:02:31.3]} 35. d6 {[%clk 0:00:52.3]} 35... Kf7 {[%clk 0:02:31.6]} 36. g3 {[%clk
0:00:46.3]} 36... Nd3 {[%clk 0:02:30.4]} 37. Nd4 {[%clk 0:00:41.7]} 37... Nxb2
{[%clk 0:02:29.1]} 38. f4 {[%clk 0:00:40]} 38... Ke8 {[%clk 0:02:28.5]} 39. Ne6
{[%clk 0:00:35.8]} 39... Kd7 {[%clk 0:02:28.3]} 40. Nf8+ {[%clk 0:00:35.9]}
40... Kxd6 {[%clk 0:02:28.5]} 41. Nxh7 {[%clk 0:00:36.8]} 41... Ke6 {[%clk
0:02:29]} 42. Ng5+ {[%clk 0:00:35.4]} 42... Kf5 {[%clk 0:02:28.8]} 43. Kf2
{[%clk 0:00:35.1]} 43... Nd3+ {[%clk 0:02:28.7]} 44. Ke3 {[%clk 0:00:32.2]}
44... Nc1 {[%clk 0:02:29.1]} 45. g4+ {[%clk 0:00:31.7]} 45... Kf6 {[%clk
0:02:28.4]} 46. Ne4+ {[%clk 0:00:31.5]} 46... Ke6 {[%clk 0:02:28.7]} 47. Nc3
{[%clk 0:00:27.6]} 47... Kd6 {[%clk 0:02:26.9]} 48. Ke4 {[%clk 0:00:27.7]} 48...
Kc5 {[%clk 0:02:25.5]} 49. h4 {[%clk 0:00:27.7]} 49... Kc4 {[%clk 0:02:25.9]}
50. Nd5 {[%clk 0:00:24.6]} 50... Nd3 {[%clk 0:02:24.8]} 51. h5 {[%clk
0:00:24.1]} 51... Nc5+ {[%clk 0:02:25]} 52. Ke5 {[%clk 0:00:22.3]} 52... gxh5
{[%clk 0:02:25.4]} 53. gxh5 {[%clk 0:00:22]} 53... Nd7+ {[%clk 0:02:25.7]} 54.
Kd6 {[%clk 0:00:21.2]} 54... Nf8 {[%clk 0:02:25.2]} 55. Ke7 {[%clk 0:00:17.9]}
55... Nh7 {[%clk 0:02:25.4]} 56. Ne3+ {[%clk 0:00:13.4]} 56... Kd4 {[%clk
0:02:24.8]} 57. Ng4 {[%clk 0:00:08.4]} 57... Ke4 {[%clk 0:02:24.8]} 58. Nf6+
{[%clk 0:00:07.7]} 58... Nxf6 {[%clk 0:02:25.2]} 59. Kxf6 {[%clk 0:00:07.7]}
59... Kxf4 {[%clk 0:02:25.6]} 60. h6 {[%clk 0:00:08.2]} 60... Ke4 {[%clk
0:02:26.1]} 61. h7 {[%clk 0:00:09.1]} 61... Kd5 {[%clk 0:02:26.6]} 62. h8=Q
{[%clk 0:00:08.9]} 62... Kd4 {[%clk 0:02:26.8]} 63. Qb8 {[%clk 0:00:08.5]} 63...
Kd5 {[%clk 0:02:27.1]} 64. Qxa7 {[%clk 0:00:08.2]} 64... Kc4 {[%clk 0:02:27.5]}
65. Qd7 {[%clk 0:00:07.5]} 65... Kc5 {[%clk 0:02:26.9]} 66. Ke5 {[%clk
0:00:07.2]} 66... Kb6 {[%clk 0:02:27.2]} 67. Kd5 {[%clk 0:00:06.6]} 67... Ka5
{[%clk 0:02:26.4]} 68. Kc5 {[%clk 0:00:05.3]} 68... Ka6 {[%clk 0:02:26.6]} 69.
Qc6+ {[%clk 0:00:04.8]} 69... Ka7 {[%clk 0:02:26.8]} 70. Qb5 {[%clk 0:00:04.8]}
70... Ka8 {[%clk 0:02:25.9]} 71. Kc6 {[%clk 0:00:05.4]} 71... Ka7 {[%clk
0:02:26.3]} 72. Qb6+ {[%clk 0:00:05.8]} 72... Ka8 {[%clk 0:02:26]} 73. Qb7#
{[%clk 0:00:06.7]} 1-0

[Event "*** Titled Tuesday Blitz"]
[Site "Chess.com"]
[Date "2020.03.03"]
[Round "3"]
[White "MatthewG-p4p"]
[Black "Jbd735"]
[Result "1-0"]
[WhiteElo "2789"]
[BlackElo "2474"]
[TimeControl "180+1"]
[EndTime "13:29:38 PST"]
[Termination "MatthewG-p4p won on time"]

1. e4 {[%clk 0:03:00.9]} 1... e5 {[%clk 0:03:00]} 2. Nf3 {[%clk 0:03:00.8]} 2...
Nc6 {[%clk 0:03:00.4]} 3. Bc4 {[%clk 0:02:57]} 3... Bc5 {[%clk 0:02:59.8]} 4. b4
{[%clk 0:02:56.9]} 4... Bxb4 {[%clk 0:02:59.6]} 5. c3 {[%clk 0:02:57]} 5... Ba5
{[%clk 0:03:00]} 6. d4 {[%clk 0:02:56.9]} 6... d6 {[%clk 0:03:00.4]} 7. O-O
{[%clk 0:02:50.1]} 7... Nf6 {[%clk 0:02:57.8]} 8. Bg5 {[%clk 0:02:33.8]} 8...
Bb6 {[%clk 0:02:32.6]} 9. Na3 {[%clk 0:02:21.1]} 9... h6 {[%clk 0:02:25.3]} 10.
Bh4 {[%clk 0:02:20.5]} 10... g5 {[%clk 0:02:21.4]} 11. Nxg5 {[%clk 0:02:20.7]}
11... hxg5 {[%clk 0:02:18.3]} 12. Bxg5 {[%clk 0:02:21.6]} 12... Rg8 {[%clk
0:02:14.4]} 13. h4 {[%clk 0:02:17.3]} 13... Rxg5 {[%clk 0:01:50.7]} 14. hxg5
{[%clk 0:02:18.2]} 14... Nxe4 {[%clk 0:01:50.9]} 15. Qh5 {[%clk 0:02:16.6]}
15... d5 {[%clk 0:01:45.6]} 16. g6 {[%clk 0:01:49.4]} 16... fxg6 {[%clk
0:01:00.6]} 17. Qxg6+ {[%clk 0:01:48]} 17... Kf8 {[%clk 0:01:01.1]} 18. Qh6+
{[%clk 0:01:42.5]} 18... Kg8 {[%clk 0:00:55.8]} 19. Rae1 {[%clk 0:01:41.1]}
19... Bf5 {[%clk 0:00:50.8]} 20. Qh5 {[%clk 0:01:16.3]} 20... Bh7 {[%clk
0:00:38.7]} 21. Bb3 {[%clk 0:00:53.5]} 21... Nd2 {[%clk 0:00:38.2]} 22. Re3
{[%clk 0:00:47.3]} 22... Nxf1 {[%clk 0:00:34.9]} 23. Rh3 {[%clk 0:00:47.4]}
23... Qd7 {[%clk 0:00:26.9]} 24. Bxd5+ {[%clk 0:00:45.4]} 24... Qxd5 {[%clk
0:00:15.7]} 25. Qxh7+ {[%clk 0:00:45.2]} 25... Kf8 {[%clk 0:00:16.1]} 26. Qh8+
{[%clk 0:00:40.4]} 26... Ke7 {[%clk 0:00:02.3]} 27. Rh7+ {[%clk 0:00:39.7]}
27... Ke6 {[%clk 0:00:01.6]} 28. Qxa8 {[%clk 0:00:30.7]} 1-0

[Event "*** Titled Tuesday Blitz"]
[Site "Chess.com"]
[Date "2020.03.03"]
[Round "3"]
[White "Vyacheslav_N"]
[Black "Perecke"]
[Result "0-1"]
[WhiteElo "2535"]
[BlackElo "2304"]
[TimeControl "180+1"]
[EndTime "13:29:49 PST"]
[Termination "Perecke won by checkmate"]

1. e4 {[%clk 0:03:00.9]} 1... e5 {[%clk 0:02:55]} 2. Nc3 {[%clk 0:02:57.8]} 2...
Nf6 {[%clk 0:02:50.5]} 3. f4 {[%clk 0:02:57.7]} 3... d5 {[%clk 0:02:49]} 4. fxe5
{[%clk 0:02:57.8]} 4... Nxe4 {[%clk 0:02:45.8]} 5. Qf3 {[%clk 0:02:58.4]} 5...
Nxc3 {[%clk 0:02:42.8]} 6. dxc3 {[%clk 0:02:59.1]} 6... Bc5 {[%clk 0:02:42.7]}
7. Bf4 {[%clk 0:02:58.8]} 7... c6 {[%clk 0:02:39.3]} 8. O-O-O {[%clk 0:02:59.1]}
8... Be6 {[%clk 0:02:36.5]} 9. Qg3 {[%clk 0:02:58.6]} 9... g6 {[%clk 0:02:32.4]}
10. h4 {[%clk 0:02:54.7]} 10... Nd7 {[%clk 0:02:29.5]} 11. Nf3 {[%clk
0:02:52.3]} 11... Qb6 {[%clk 0:02:25.2]} 12. Ng5 {[%clk 0:02:50.7]} 12... O-O-O
{[%clk 0:02:24.2]} 13. Bd3 {[%clk 0:02:30.7]} 13... d4 {[%clk 0:02:08.9]} 14. c4
{[%clk 0:02:27]} 14... Bb4 {[%clk 0:01:50.2]} 15. a3 {[%clk 0:02:25.7]} 15...
Bc3 {[%clk 0:01:44.8]} 16. bxc3 {[%clk 0:02:06.9]} 16... dxc3 {[%clk 0:01:45.7]}
17. Rde1 {[%clk 0:02:03.4]} 17... Qb2+ {[%clk 0:01:44.7]} 18. Kd1 {[%clk
0:02:04]} 18... Nc5 {[%clk 0:01:41.7]} 19. Bc1 {[%clk 0:02:04.6]} 19... Qb1
{[%clk 0:00:12.1]} 20. Nxe6 {[%clk 0:01:52.4]} 20... Nxd3 {[%clk 0:00:04]} 21.
Nxd8 {[%clk 0:01:49.5]} 21... Qxc1+ {[%clk 0:00:03.5]} 22. Ke2 {[%clk
0:01:49.7]} 22... Qd2+ {[%clk 0:00:02.4]} 23. Kf3 {[%clk 0:01:50.3]} 23... Nxe1+
{[%clk 0:00:02.5]} 24. Qxe1 {[%clk 0:01:46.9]} 24... Rxd8 {[%clk 0:00:02.9]} 25.
Qxd2 {[%clk 0:01:45.5]} 25... Rxd2 {[%clk 0:00:03.8]} 26. Rc1 {[%clk 0:01:44.1]}
26... Kd7 {[%clk 0:00:02.9]} 27. Ke3 {[%clk 0:01:39.8]} 27... Ke6 {[%clk
0:00:03.1]} 28. Rf1 {[%clk 0:01:40.1]} 28... Rxc2 {[%clk 0:00:02.9]} 29. Rf6+
{[%clk 0:01:39.3]} 29... Ke7 {[%clk 0:00:03]} 30. Rf4 {[%clk 0:01:37.6]} 30...
Rxg2 {[%clk 0:00:02.3]} 31. Kd3 {[%clk 0:01:38.1]} 31... c2 {[%clk 0:00:02.5]}
32. Rf1 {[%clk 0:01:38.7]} 32... Rh2 {[%clk 0:00:02.8]} 33. Rc1 {[%clk
0:01:33.9]} 33... Ke6 {[%clk 0:00:02.4]} 34. Rf1 {[%clk 0:01:33.3]} 34... Kxe5
{[%clk 0:00:02.4]} 35. Re1+ {[%clk 0:01:33.6]} 35... Kd6 {[%clk 0:00:02.4]} 36.
Kc3 {[%clk 0:01:32.1]} 36... Kc5 {[%clk 0:00:02.8]} 37. Re5+ {[%clk 0:01:32.1]}
37... Kd6 {[%clk 0:00:03.1]} 38. Re1 {[%clk 0:01:32.4]} 38... Re2 {[%clk
0:00:03.7]} 39. Rf1 {[%clk 0:01:31.3]} 39... f5 {[%clk 0:00:04.1]} 40. h5 {[%clk
0:01:30.9]} 40... Rf2 {[%clk 0:00:04.5]} 41. Rh1 {[%clk 0:01:29.4]} 41... g5
{[%clk 0:00:04.8]} 42. Kb2 {[%clk 0:01:27.7]} 42... g4 {[%clk 0:00:05.3]} 43.
Re1 {[%clk 0:01:27.5]} 43... g3 {[%clk 0:00:05.2]} 44. Re8 {[%clk 0:01:27.3]}
44... g2 {[%clk 0:00:05.5]} 45. Rd8+ {[%clk 0:01:28.2]} 45... Ke7 {[%clk
0:00:05.3]} 46. Rg8 {[%clk 0:01:29.1]} 46... Kf7 {[%clk 0:00:05.7]} 47. Rg3
{[%clk 0:01:28.8]} 47... f4 {[%clk 0:00:06]} 48. Rg4 {[%clk 0:01:29.2]} 48... f3
{[%clk 0:00:06.2]} 49. h6 {[%clk 0:01:29.8]} 49... Rf1 {[%clk 0:00:05.8]} 50.
Rg7+ {[%clk 0:01:29.2]} 50... Kf6 {[%clk 0:00:05.7]} 51. Kxc2 {[%clk 0:01:29.1]}
51... g1=Q {[%clk 0:00:05.8]} 52. Rxg1 {[%clk 0:01:28.7]} 52... Rxg1 {[%clk
0:00:06]} 53. Kd3 {[%clk 0:01:29.6]} 53... f2 {[%clk 0:00:06.8]} 54. Ke3 {[%clk
0:01:30.5]} 54... f1=Q {[%clk 0:00:07.7]} 55. Ke4 {[%clk 0:01:30.7]} 55... Rg4+
{[%clk 0:00:07.9]} 56. Ke3 {[%clk 0:01:28.7]} 56... Qxc4 {[%clk 0:00:08.8]} 57.
a4 {[%clk 0:01:27.9]} 57... Qb3+ {[%clk 0:00:09.7]} 58. Kf2 {[%clk 0:01:27.9]}
58... Rxa4 {[%clk 0:00:10.2]} 59. Kg2 {[%clk 0:01:28]} 59... Ra2+ {[%clk
0:00:10.5]} 60. Kg1 {[%clk 0:01:28.9]} 60... Qb1# {[%clk 0:00:11.4]} 0-1

[Event "*** Titled Tuesday Blitz"]
[Site "Chess.com"]
[Date "2020.03.03"]
[Round "3"]
[White "Nesty_Javi_Chess"]
[Black "hansen"]
[Result "0-1"]
[WhiteElo "2700"]
[BlackElo "2921"]
[TimeControl "180+1"]
[EndTime "13:29:52 PST"]
[Termination "hansen won on time"]

1. e4 {[%clk 0:03:00.9]} 1... c5 {[%clk 0:02:44.8]} 2. Nf3 {[%clk 0:02:54.4]}
2... e6 {[%clk 0:02:43.4]} 3. d4 {[%clk 0:02:46.1]} 3... cxd4 {[%clk 0:02:38.4]}
4. Nxd4 {[%clk 0:02:47]} 4... a6 {[%clk 0:02:16.1]} 5. Bd3 {[%clk 0:02:45.6]}
5... Bc5 {[%clk 0:02:15]} 6. Nb3 {[%clk 0:02:45.2]} 6... Be7 {[%clk 0:02:15.5]}
7. Nc3 {[%clk 0:02:45.4]} 7... d6 {[%clk 0:02:14]} 8. Be3 {[%clk 0:02:46.3]}
8... Nf6 {[%clk 0:02:12.6]} 9. f4 {[%clk 0:02:47.2]} 9... Nc6 {[%clk 0:02:11.6]}
10. Qf3 {[%clk 0:02:46.7]} 10... Qc7 {[%clk 0:02:09.8]} 11. g4 {[%clk
0:02:45.9]} 11... b5 {[%clk 0:02:09.7]} 12. O-O-O {[%clk 0:02:43.6]} 12... Bb7
{[%clk 0:02:04.9]} 13. g5 {[%clk 0:02:41.4]} 13... Nd7 {[%clk 0:02:04.9]} 14.
Kb1 {[%clk 0:02:42.1]} 14... Nb4 {[%clk 0:02:03.4]} 15. h4 {[%clk 0:02:38.3]}
15... O-O-O {[%clk 0:02:00]} 16. a3 {[%clk 0:02:19.4]} 16... Nxd3 {[%clk
0:01:56.9]} 17. cxd3 {[%clk 0:02:20.3]} 17... Nc5 {[%clk 0:01:57.2]} 18. Nd4
{[%clk 0:01:56.6]} 18... Kb8 {[%clk 0:01:54.5]} 19. b4 {[%clk 0:01:46.3]} 19...
Nb3 {[%clk 0:01:26.3]} 20. Nce2 {[%clk 0:00:19]} 20... Nxd4 {[%clk 0:01:24.2]}
21. Bxd4 {[%clk 0:00:16.5]} 21... f6 {[%clk 0:01:11.5]} 22. Rc1 {[%clk
0:00:16.2]} 22... Qd7 {[%clk 0:01:06.7]} 23. Qe3 {[%clk 0:00:15.9]} 23... Rc8
{[%clk 0:01:04.4]} 24. Bb6 {[%clk 0:00:13.3]} 24... e5 {[%clk 0:00:48.5]} 25.
gxf6 {[%clk 0:00:07.2]} 25... Bxf6 {[%clk 0:00:42.8]} 26. f5 {[%clk 0:00:05.2]}
26... g6 {[%clk 0:00:37.1]} 27. fxg6 {[%clk 0:00:04.8]} 27... hxg6 {[%clk
0:00:37.5]} 28. Nc3 {[%clk 0:00:05.5]} 28... Rxh4 {[%clk 0:00:35.2]} 29. Nd5
{[%clk 0:00:03.6]} 29... Bxd5 {[%clk 0:00:24.4]} 0-1

[Event "*** Titled Tuesday Blitz"]
[Site "Chess.com"]
[Date "2020.03.03"]
[Round "3"]
[White "NM2019"]
[Black "AyMitecK"]
[Result "1-0"]
[WhiteElo "2034"]
[BlackElo "2320"]
[TimeControl "180+1"]
[EndTime "13:29:55 PST"]
[Termination "NM2019 won by resignation"]

1. c4 {[%clk 0:03:00.7]} 1... Nf6 {[%clk 0:02:54.2]} 2. Nf3 {[%clk 0:02:59.9]}
2... c5 {[%clk 0:02:53.8]} 3. g3 {[%clk 0:03:00.5]} 3... d5 {[%clk 0:02:53.7]}
4. cxd5 {[%clk 0:03:00.6]} 4... Nxd5 {[%clk 0:02:54.6]} 5. Bg2 {[%clk
0:03:01.1]} 5... Nc6 {[%clk 0:02:54.4]} 6. O-O {[%clk 0:03:01.1]} 6... e5 {[%clk
0:02:53.7]} 7. Nc3 {[%clk 0:03:01.5]} 7... Nc7 {[%clk 0:02:52.4]} 8. d3 {[%clk
0:03:01]} 8... Be7 {[%clk 0:02:50.9]} 9. b3 {[%clk 0:02:58.4]} 9... O-O {[%clk
0:02:49.1]} 10. Bb2 {[%clk 0:02:58.8]} 10... f6 {[%clk 0:02:49]} 11. Rc1 {[%clk
0:02:58.7]} 11... Bd7 {[%clk 0:02:36.7]} 12. Nh4 {[%clk 0:02:58.7]} 12... Re8
{[%clk 0:02:28.6]} 13. Nd5 {[%clk 0:02:57.6]} 13... Bf8 {[%clk 0:02:17.9]} 14.
Nxc7 {[%clk 0:02:54.9]} 14... Qxc7 {[%clk 0:02:18.8]} 15. e3 {[%clk 0:02:37.7]}
15... Qd6 {[%clk 0:01:59.4]} 16. Qe2 {[%clk 0:02:26.2]} 16... Rad8 {[%clk
0:01:57.1]} 17. Rfd1 {[%clk 0:02:25.8]} 17... Bc8 {[%clk 0:01:22.2]} 18. Be4
{[%clk 0:02:23.5]} 18... g6 {[%clk 0:01:17.4]} 19. Bg2 {[%clk 0:02:21.1]} 19...
b6 {[%clk 0:01:16]} 20. a3 {[%clk 0:02:19.2]} 20... Ba6 {[%clk 0:01:15.7]} 21.
Bf1 {[%clk 0:02:17.9]} 21... Bb5 {[%clk 0:01:11.4]} 22. Qg4 {[%clk 0:02:07]}
22... Bg7 {[%clk 0:01:05.7]} 23. Qf3 {[%clk 0:01:57.8]} 23... a5 {[%clk
0:01:01.1]} 24. Bg2 {[%clk 0:01:47]} 24... f5 {[%clk 0:00:51.1]} 25. a4 {[%clk
0:01:40.9]} 25... e4 {[%clk 0:00:30.7]} 26. dxe4 {[%clk 0:01:40.1]} 26... fxe4
{[%clk 0:00:31.6]} 27. Rxd6 {[%clk 0:01:37.6]} 27... exf3 {[%clk 0:00:31.7]} 28.
Rxd8 {[%clk 0:01:37.6]} 28... Nxd8 {[%clk 0:00:28.8]} 29. Bxg7 {[%clk
0:01:31.6]} 29... fxg2 {[%clk 0:00:25.1]} 30. axb5 {[%clk 0:01:23.3]} 30... Kxg7
{[%clk 0:00:23.7]} 31. Rd1 {[%clk 0:01:22.8]} 31... Nf7 {[%clk 0:00:15.2]} 32.
Rd7 {[%clk 0:01:20.9]} 32... Re4 {[%clk 0:00:14.5]} 33. Rb7 {[%clk 0:01:17.9]}
33... Rb4 {[%clk 0:00:14.7]} 34. Rxb6 {[%clk 0:01:18]} 34... Rxb3 {[%clk
0:00:15.4]} 35. Rb7 {[%clk 0:01:10.7]} 35... a4 {[%clk 0:00:14.4]} 36. Nf3
{[%clk 0:01:11]} 36... Kf6 {[%clk 0:00:13]} 37. Kxg2 {[%clk 0:01:07.3]} 37... a3
{[%clk 0:00:13.1]} 38. Ra7 {[%clk 0:01:07.4]} 38... c4 {[%clk 0:00:12.3]} 39.
Nd4 {[%clk 0:01:05.7]} 39... Nd6 {[%clk 0:00:06]} 40. Ra6 {[%clk 0:01:03.1]}
40... Ke5 {[%clk 0:00:05.2]} 41. Nxb3 {[%clk 0:00:59.6]} 41... cxb3 {[%clk
0:00:06.1]} 42. Rxa3 {[%clk 0:00:59.3]} 42... Kd5 {[%clk 0:00:06.3]} 43. Rxb3
{[%clk 0:00:59.1]} 1-0

[Event "*** Titled Tuesday Blitz"]
[Site "Chess.com"]
[Date "2020.03.03"]
[Round "3"]
[White "elohunter1999"]
[Black "Darhild"]
[Result "0-1"]
[WhiteElo "2437"]
[BlackElo "2693"]
[TimeControl "180+1"]
[EndTime "13:29:56 PST"]
[Termination "Darhild won by resignation"]

1. e4 {[%clk 0:03:00.9]} 1... c5 {[%clk 0:02:58.1]} 2. Nf3 {[%clk 0:03:00.2]}
2... d6 {[%clk 0:02:58.5]} 3. d4 {[%clk 0:03:00.8]} 3... cxd4 {[%clk 0:02:59.4]}
4. Nxd4 {[%clk 0:03:01.5]} 4... Nf6 {[%clk 0:03:00.1]} 5. Nc3 {[%clk 0:03:02.1]}
5... a6 {[%clk 0:03:00.7]} 6. Bg5 {[%clk 0:03:02.4]} 6... e6 {[%clk 0:03:01.3]}
7. f4 {[%clk 0:03:02.2]} 7... h6 {[%clk 0:03:02]} 8. Bh4 {[%clk 0:03:01.6]} 8...
Qb6 {[%clk 0:03:02.3]} 9. Qd2 {[%clk 0:03:01.7]} 9... Qxb2 {[%clk 0:03:02.2]}
10. Rb1 {[%clk 0:03:01.7]} 10... Qa3 {[%clk 0:03:02.9]} 11. e5 {[%clk
0:03:02.2]} 11... dxe5 {[%clk 0:03:03.8]} 12. fxe5 {[%clk 0:03:02.3]} 12... g5
{[%clk 0:03:04.4]} 13. exf6 {[%clk 0:03:02.4]} 13... gxh4 {[%clk 0:03:05]} 14.
Be2 {[%clk 0:03:02.6]} 14... Qa5 {[%clk 0:03:05.6]} 15. O-O {[%clk 0:03:02.3]}
15... Nd7 {[%clk 0:03:06.2]} 16. Kh1 {[%clk 0:03:02.3]} 16... Qg5 {[%clk
0:03:05.6]} 17. Qd3 {[%clk 0:03:02]} 17... Nc5 {[%clk 0:02:55.7]} 18. Qc4 {[%clk
0:03:00.2]} 18... Bd7 {[%clk 0:02:34.1]} 19. Bf3 {[%clk 0:02:59.8]} 19... Rc8
{[%clk 0:02:33]} 20. Qe2 {[%clk 0:02:43.5]} 20... Bd6 {[%clk 0:02:25.6]} 21. Ne4
{[%clk 0:02:35.5]} 21... Qe5 {[%clk 0:02:22.8]} 22. Nxd6+ {[%clk 0:02:32.2]}
22... Qxd6 {[%clk 0:02:22.5]} 23. Nf5 {[%clk 0:02:32.7]} 23... Qc7 {[%clk
0:02:11.1]} 24. Bxb7 {[%clk 0:02:30.5]} 24... Rb8 {[%clk 0:01:59.5]} 25. Ng7+
{[%clk 0:02:04.7]} 25... Kd8 {[%clk 0:01:42.5]} 26. Bxa6 {[%clk 0:02:04.5]}
26... h3 {[%clk 0:01:32]} 27. Rxb8+ {[%clk 0:01:53.2]} 27... Qxb8 {[%clk
0:01:31.9]} 28. Rd1 {[%clk 0:01:52.8]} 28... hxg2+ {[%clk 0:01:17.9]} 29. Qxg2
{[%clk 0:01:06.2]} 29... Nxa6 {[%clk 0:01:17.1]} 30. Qc6 {[%clk 0:01:05.3]}
30... Qa7 {[%clk 0:01:17.4]} 31. h4 {[%clk 0:00:26.3]} 31... Nb8 {[%clk
0:01:14.1]} 32. Qd6 {[%clk 0:00:26.5]} 32... Qc7 {[%clk 0:01:10.6]} 33. Qe7+
{[%clk 0:00:24.8]} 33... Kc8 {[%clk 0:01:11]} 34. Rd6 {[%clk 0:00:18.2]} 34...
Rd8 {[%clk 0:01:00.7]} 35. c4 {[%clk 0:00:11.6]} 35... Bc6+ {[%clk 0:00:59]} 36.
Rxc6 {[%clk 0:00:10.4]} 36... Nxc6 {[%clk 0:00:58.8]} 37. Qxc7+ {[%clk
0:00:09.7]} 37... Kxc7 {[%clk 0:00:59.1]} 38. Kh2 {[%clk 0:00:09.8]} 38... Rd4
{[%clk 0:00:59.1]} 39. Kg3 {[%clk 0:00:10.3]} 39... Ne5 {[%clk 0:00:57.4]} 40.
Ne8+ {[%clk 0:00:09.1]} 40... Kd7 {[%clk 0:00:56.5]} 41. Ng7 {[%clk 0:00:09.6]}
41... Rxc4 {[%clk 0:00:56.6]} 42. h5 {[%clk 0:00:10.1]} 42... Rg4+ {[%clk
0:00:56.1]} 43. Kh3 {[%clk 0:00:09.9]} 43... Ra4 {[%clk 0:00:57]} 0-1

[Event "*** Titled Tuesday Blitz"]
[Site "Chess.com"]
[Date "2020.03.03"]
[Round "3"]
[White "GameOverBro"]
[Black "Galiev_Azat"]
[Result "1-0"]
[WhiteElo "2583"]
[BlackElo "2288"]
[TimeControl "180+1"]
[EndTime "13:30:02 PST"]
[Termination "GameOverBro won by checkmate"]

1. e4 {[%clk 0:03:00.9]} 1... c5 {[%clk 0:02:58.2]} 2. Ne2 {[%clk 0:03:00.8]}
2... Nc6 {[%clk 0:02:55.2]} 3. Nbc3 {[%clk 0:03:01.2]} 3... g6 {[%clk
0:02:53.3]} 4. d4 {[%clk 0:03:01.3]} 4... cxd4 {[%clk 0:02:53.4]} 5. Nxd4 {[%clk
0:03:02.2]} 5... Bg7 {[%clk 0:02:51.6]} 6. Nde2 {[%clk 0:03:03]} 6... d6 {[%clk
0:02:46.9]} 7. g3 {[%clk 0:03:03.4]} 7... Nf6 {[%clk 0:02:43.3]} 8. Bg2 {[%clk
0:03:03.5]} 8... O-O {[%clk 0:02:43.2]} 9. O-O {[%clk 0:03:03.9]} 9... Bd7
{[%clk 0:02:33.8]} 10. a4 {[%clk 0:03:04.1]} 10... Rc8 {[%clk 0:02:32]} 11. h3
{[%clk 0:03:03.9]} 11... a6 {[%clk 0:02:25.8]} 12. Re1 {[%clk 0:03:03.7]} 12...
Qa5 {[%clk 0:02:18.1]} 13. Nd5 {[%clk 0:02:55.9]} 13... Nxd5 {[%clk 0:01:45.8]}
14. exd5 {[%clk 0:02:56.8]} 14... Ne5 {[%clk 0:01:43.3]} 15. Ra2 {[%clk
0:02:56.5]} 15... Bxh3 {[%clk 0:01:28.5]} 16. Bxh3 {[%clk 0:02:30.2]} 16... Nf3+
{[%clk 0:01:18.1]} 17. Kf1 {[%clk 0:02:30.3]} 17... Rxc2 {[%clk 0:01:04.8]} 18.
Nc3 {[%clk 0:02:10.5]} 18... Nxe1 {[%clk 0:00:50.5]} 19. Bd2 {[%clk 0:01:33.9]}
19... Rxd2 {[%clk 0:00:22.4]} 20. Qxd2 {[%clk 0:01:31.7]} 20... Nf3 {[%clk
0:00:21.8]} 21. Qe2 {[%clk 0:01:22.9]} 21... Ne5 {[%clk 0:00:15.2]} 22. f4
{[%clk 0:01:22.8]} 22... Nd7 {[%clk 0:00:08.4]} 23. Bxd7 {[%clk 0:01:21.3]}
23... Bxc3 {[%clk 0:00:06.7]} 24. bxc3 {[%clk 0:01:20.9]} 24... Qxc3 {[%clk
0:00:07.2]} 25. Kg2 {[%clk 0:01:20.3]} 25... Qc5 {[%clk 0:00:06.4]} 26. Qf3
{[%clk 0:01:17.2]} 26... Rd8 {[%clk 0:00:05.8]} 27. Bh3 {[%clk 0:01:15.7]} 27...
e5 {[%clk 0:00:04.9]} 28. dxe6 {[%clk 0:01:15.2]} 28... fxe6 {[%clk 0:00:05.2]}
29. Bxe6+ {[%clk 0:01:15.3]} 29... Kg7 {[%clk 0:00:05.5]} 30. Qxb7+ {[%clk
0:01:12.9]} 30... Kh6 {[%clk 0:00:04.5]} 31. Qe4 {[%clk 0:01:08.1]} 31... d5
{[%clk 0:00:03.6]} 32. Qe5 {[%clk 0:01:03.4]} 32... Qc4 {[%clk 0:00:03]} 33. Ra1
{[%clk 0:01:01.9]} 33... Qe4+ {[%clk 0:00:03]} 34. Qxe4 {[%clk 0:00:59.8]} 34...
dxe4 {[%clk 0:00:03.9]} 35. Re1 {[%clk 0:00:59.6]} 35... Rd4 {[%clk 0:00:03.7]}
36. a5 {[%clk 0:00:59.4]} 36... Ra4 {[%clk 0:00:03.6]} 37. Bc8 {[%clk
0:00:59.3]} 37... Rxa5 {[%clk 0:00:03.7]} 38. Rxe4 {[%clk 0:00:59.8]} 38... Ra2+
{[%clk 0:00:04.3]} 39. Kh3 {[%clk 0:01:00]} 39... a5 {[%clk 0:00:04.9]} 40. Re7
{[%clk 0:00:59.5]} 40... a4 {[%clk 0:00:04.9]} 41. Ra7 {[%clk 0:00:59.4]} 41...
a3 {[%clk 0:00:04.7]} 42. Be6 {[%clk 0:00:59.7]} 42... Ra1 {[%clk 0:00:04.4]}
43. Bg8 {[%clk 0:00:59.1]} 43... g5 {[%clk 0:00:04.6]} 44. f5 {[%clk 0:00:58.4]}
44... g4+ {[%clk 0:00:03.7]} 45. Kxg4 {[%clk 0:00:57.9]} 45... a2 {[%clk
0:00:03.5]} 46. Rxh7# {[%clk 0:00:57.6]} 1-0